[Event "21st Maccabiah GM 2022"]
[Site "?"]
[Date "2022.07.14"]
[Round "2.5"]
[White "Ginsburg, Gennadi"]
[Black "Yarmonov, Igor"]
[Result "1/2-1/2"]
[ECO "C77"]
[WhiteElo "2400"]
[BlackElo "2372"]
[Annotator "ChessBase"]
[PlyCount "75"]
[EventDate "2022.07.13"]
[EventType "tourn"]
[EventCountry "ISR"]
[SourceTitle "playchess.com"]
[Source "ChessBase"]
[SourceQuality "1"]
[TimeControl "40/5400+30:1800+30"]

1. e4 {[%emt 0:00:05]} e5 {[%emt 0:00:32]} 2. Nf3 {[%emt 0:00:30]} Nc6 {[%emt 0:00:30]} 3. Bb5 {[%emt 0:00:30]} a6 {[%emt 0:00:30]} 4. Ba4 {[%emt 0:00:30]} Nf6 {[%emt 0:00:30]} 5. d3 {[%emt 0:00:30]} d6 {[%emt 0:00:30]} 6. c3 {[%emt 0:00:30]} Be7 {[%emt 0:00:30]} 7. Nbd2 {[%emt 0:00:30]} O-O {[%emt 0:00:30]} 8. O-O {[%emt 0:00:30]} b5 {[%emt 0:00:30]} 9. Bc2 {[%emt 0:00:30]} Re8 {[%emt 0:00:30]} 10. Re1 {[%emt 0:00:30]} Bf8 {[%emt 0:00:30]} 11. a4 {[%emt 0:00:30]} Bd7 {[%emt 0:00:30]} 12. Nf1 {[%emt 0:00:30]} h6 {[%emt 0:00:30]} 13. h3 {[%emt 0:00:30]} g6 {[%emt 0:00:30]} 14. Ne3 {[%emt 0:00:30]} Rb8 {[%emt 0:00:30]} 15. Nh2 {[%emt 0:00:30]} b4 {[%emt 0:00:30]} 16. Nhg4 {[%emt 0:00:30]} Nxg4 {[%emt 0:00:30]} 17. hxg4 {[%emt 0:00:30]} bxc3 {[%emt 0:00:30]} 18. bxc3 {[%emt 0:00:30]} Bg7 {[%emt 0:00:30]} 19. g3 {[%emt 0:00:30]} Be6 {[%emt 0:00:30]} 20. Kg2 {[%emt 0:00:30]} Na5 {[%emt 0:00:30]} 21. c4 {[%emt 0:00:30]} Nc6 {[%emt 0:00:30]} 22. a5 {[%emt 0:00:30]} Nd4 {[%emt 0:00:30]} 23. Ba4 {[%emt 0:00:30]} c6 {[%emt 0:00:30]} 24. Bd2 {[%emt 0:00:30]} Qc8 {[%emt 0:00:30]} 25. Rh1 {[%emt 0:00:30]} Re7 {[%emt 0:00:30]} 26. Bc3 {[%emt 0:00:30]} Reb7 {[%emt 0:00:30]} 27. Ra2 {[%emt 0:00:30]} Bd7 {[%emt 0:00:30]} 28. f3 {[%emt 0:00:30]} Ne6 {[%emt 0:00:30]} 29. Qc1 {[%emt 0:00:30]} Nc5 {[%emt 0:00:30]} 30. Bc2 {[%emt 0:00:30]} Be6 {[%emt 0:00:30]} 31. Qd1 {[%emt 0:00:30]} Qf8 {[%emt 0:00:30]} 32. d4 {[%emt 0:00:30]} exd4 {[%emt 0:00:30]} 33. Bxd4 {[%emt 0:00:30]} Rd7 {[%emt 0:00:30]} 34. Qd2 {[%emt 0:00:30]} Bxd4 {[%emt 0:00:30]} 35. Qxd4 {[%emt 0:00:30]} f6 {[%emt 0:00:30]} 36. Kf2 {[%emt 0:00:30]} Kf7 {[%emt 0:00:30]} 37. Ba4 {[%emt 0:00:30]} Nxa4 {[%emt 0:00:30]} 38. Rxa4 {[%emt 0:00:30]} 1/2-1/2

[Event "21st Maccabiah GM 2022"]
[Site "?"]
[Date "2022.07.15"]
[Round "3.1"]
[White "Yarmonov, Igor"]
[Black "Dvoirys, Semen I."]
[Result "0-1"]
[ECO "D82"]
[WhiteElo "2372"]
[BlackElo "2439"]
[Annotator "ChessBase"]
[PlyCount "80"]
[EventDate "2022.07.13"]
[EventType "tourn"]
[EventCountry "ISR"]
[SourceTitle "playchess.com"]
[Source "ChessBase"]
[SourceQuality "1"]
[TimeControl "40/5400+30:1800+30"]

1. d4 {[%emt 0:00:05]} Nf6 {[%emt 0:00:11]} 2. c4 {[%emt 0:00:34]} g6 {[%emt 0:00:36]} 3. Nc3 {[%emt 0:00:52]} d5 {[%emt 0:00:07]} 4. Bf4 {[%emt 0:00:43]} Bg7 {[%emt 0:00:06]} 5. e3 {[%emt 0:00:23]} c5 {[%emt 0:00:14]} 6. cxd5 {[%emt 0:06:57]} Nxd5 {[%emt 0:00:18]} 7. Bxb8 {[%emt 0:03:26]} Rxb8 {[%emt 0:02:06]} 8. Qa4+ {[%emt 0:01:37]} Bd7 {[%emt 0:00:11]} 9. Bb5 {[%emt 0:00:14]} Nxc3 {[%emt 0:05:34]} 10. bxc3 {[%emt 0:00:16]} a6 {[%emt 0:00:13]} 11. Bxd7+ {[%emt 0:00:52]} Qxd7 {[%emt 0:00:07]} 12. Qxd7+ {[%emt 0:00:25]} Kxd7 {[%emt 0:00:08]} 13. Kd2 {[%emt 0:03:37]} e5 {[%emt 0:05:13]} 14. dxe5 {[%emt 0:00:25]} Bxe5 {[%emt 0:00:08]} 15. Nf3 {[%emt 0:00:20]} Bg7 {[%emt 0:01:32]} 16. Kc2 {[%emt 0:00:12]} b5 {[%emt 0:01:17]} 17. Rad1+ {[%emt 0:02:38]} Kc6 {[%emt 0:00:22]} 18. Rd2 {[%emt 0:00:38]} Rhd8 {[%emt 0:00:44]} 19. Rhd1 {[%emt 0:00:06]} Rxd2+ {[%emt 0:00:11]} 20. Rxd2 {[%emt 0:00:26]} h6 {[%emt 0:00:44]} 21. e4 {[%emt 0:01:19]} Re8 {[%emt 0:00:37]} 22. Re2 {[%emt 0:00:14]} a5 {[%emt 0:03:09]} 23. Nd2 {[%emt 0:00:45]} f5 {[%emt 0:05:12]} 24. Re3 {[%emt 0:03:07]} f4 {[%emt 0:03:36]} 25. Rf3 {[%emt 0:02:37]} g5 {[%emt 0:08:42]} 26. h4 {[%emt 0:00:27]} b4 {[%emt 0:00:33]} 27. cxb4 {[%emt 0:02:43]} axb4 {[%emt 0:00:07]} 28. hxg5 {[%emt 0:00:28]} hxg5 {[%emt 0:00:02]} 29. Rh3 {[%emt 0:10:28]} Bc3 {[%emt 0:03:27]} 30. Nc4 {[%emt 0:00:40]} Rxe4 {[%emt 0:01:48]} 31. Kb3 {[%emt 0:00:50]} Kd5 {[%emt 0:13:51]} 32. Nb6+ {[%emt 0:05:24]} Kd4 {[%emt 0:00:36]} 33. Rh5 {[%emt 0:00:43]} Kd3 {[%emt 0:04:13]} 34. Rxg5 {[%emt 0:03:40]} c4+ {[%emt 0:00:14]} 35. Nxc4 {[%emt 0:02:41]} Rxc4 {[%emt 0:00:16]} 36. g3 {[%emt 0:01:36]} Rc8 {[%emt 0:04:07]} 37. gxf4 {[%emt 0:02:28]} Ra8 {[%emt 0:00:10]} 38. Rg3+ {[%emt 0:01:24]} Ke4 {[%emt 0:00:16]} 39. a4 {[%emt 0:01:07]} bxa3 {[%emt 0:00:22]} 40. Ka2 {[%emt 0:01:02]} Bb2 {[%emt 0:00:06]} 0-1

[Event "21st Maccabiah GM 2022"]
[Site "?"]
[Date "2022.07.15"]
[Round "3.2"]
[White "Parkhov, Yair"]
[Black "Ginsburg, Gennadi"]
[Result "1/2-1/2"]
[ECO "B42"]
[WhiteElo "2468"]
[BlackElo "2400"]
[Annotator "ChessBase"]
[PlyCount "90"]
[EventDate "2022.07.13"]
[EventType "tourn"]
[EventCountry "ISR"]
[SourceTitle "playchess.com"]
[Source "ChessBase"]
[SourceQuality "1"]
[TimeControl "40/5400+30:1800+30"]

1. e4 {[%emt 0:00:03]} c5 {[%emt 0:04:26]} 2. Nf3 {[%emt 0:00:53]} e6 {[%emt 0:01:02]} 3. d4 {[%emt 0:00:12]} cxd4 {[%emt 0:00:06]} 4. Nxd4 {[%emt 0:00:06]} a6 {[%emt 0:00:03]} 5. Bd3 {[%emt 0:00:10]} Bc5 {[%emt 0:01:07]} 6. Nb3 {[%emt 0:00:08]} Ba7 {[%emt 0:00:10]} 7. Qe2 {[%emt 0:00:10]} Ne7 {[%emt 0:02:26]} 8. Be3 {[%emt 0:04:45]} Nbc6 {[%emt 0:01:47]} 9. O-O {[%emt 0:02:01]} O-O {[%emt 0:09:23]} 10. N1d2 {[%emt 0:13:45]} d5 {[%emt 0:13:21]} 11. Bxa7 {[%emt 0:03:16]} Rxa7 {[%emt 0:00:23]} 12. e5 {[%emt 0:04:11]} Ng6 {[%emt 0:05:36]} 13. f4 {[%emt 0:15:05]} a5 {[%emt 0:10:10]} 14. Qf2 {[%emt 0:05:49]} b6 {[%emt 0:03:52]} 15. Bb5 {[%emt 0:08:00]} Bd7 {[%emt 0:10:45]} 16. a4 {[%emt 0:05:16]} f6 {[%emt 0:10:06]} 17. exf6 {[%emt 0:03:01]} Rxf6 {[%emt 0:00:36]} 18. Qe3 {[%emt 0:02:29]} Qb8 {[%emt 0:08:48]} 19. g3 {[%emt 0:03:52]} Nce7 {[%emt 0:04:12]} 20. Nd4 {[%emt 0:04:57]} Bxb5 {[%emt 0:02:53]} 21. axb5 {[%emt 0:00:23]} Nf8 {[%emt 0:03:44]} 22. c3 {[%emt 0:04:53]} h6 {[%emt 0:01:30]} 23. N2f3 {[%emt 0:00:46]} Rc7 {[%emt 0:01:18]} 24. Ne5 {[%emt 0:01:42]} Nf5 {[%emt 0:03:13]} 25. Nxf5 {[%emt 0:01:53]} exf5 {[%emt 0:00:53]} 26. Nc6 {[%emt 0:02:58]} Qb7 {[%emt 0:00:47]} 27. b4 {[%emt 0:03:43]} axb4 {[%emt 0:00:45]} 28. Ra7 {[%emt 0:00:42]} Qxa7 {[%emt 0:00:31]} 29. Nxa7 {[%emt 0:00:07]} Rxa7 {[%emt 0:00:02]} 30. Qd4 {[%emt 0:01:38]} bxc3 {[%emt 0:00:14]} 31. Qxd5+ {[%emt 0:00:33]} Kh7 {[%emt 0:00:18]} 32. Qc4 {[%emt 0:00:31]} Ne6 {[%emt 0:01:12]} 33. Qxc3 {[%emt 0:00:09]} Ra5 {[%emt 0:00:42]} 34. Qe5 {[%emt 0:03:31]} Nc5 {[%emt 0:00:22]} 35. Rd1 {[%emt 0:01:00]} Rxb5 {[%emt 0:00:39]} 36. Rd8 {[%emt 0:00:06]} Nb7 {[%emt 0:00:33]} 37. Qxb5 {[%emt 0:02:13]} Nxd8 {[%emt 0:00:01]} 38. h3 {[%emt 0:02:32]} Ne6 {[%emt 0:00:40]} 39. Qe5 {[%emt 0:00:44]} Nc5 {[%emt 0:00:41]} 40. Kg2 {[%emt 0:01:23]} Nd3 {[%emt 0:00:27]} 41. Qd5 {[%emt 0:30:35]} Nc5 {[%emt 0:02:56]} 42. Kf3 {[%emt 0:00:00]} Ne6 {[%emt 0:00:43]} 43. Ke3 {[%emt 0:00:00]} Nc5 {[%emt 0:00:22]} 44. g4 {[%emt 0:00:00]} fxg4 {[%emt 0:13:26]} 45. hxg4 {[%emt 0:00:00]} Ne6 {[%emt 0:03:30]} 1/2-1/2

[Event "21st Maccabiah GM 2022"]
[Site "?"]
[Date "2022.07.15"]
[Round "3.3"]
[White "Tzidkiya, Yeshaayahu"]
[Black "Postny, Evgeny"]
[Result "1/2-1/2"]
[ECO "B12"]
[WhiteElo "2419"]
[BlackElo "2564"]
[Annotator "ChessBase"]
[PlyCount "84"]
[EventDate "2022.07.13"]
[EventType "tourn"]
[EventCountry "ISR"]
[SourceTitle "playchess.com"]
[Source "ChessBase"]
[SourceQuality "1"]
[TimeControl "40/5400+30:1800+30"]

1. e4 {[%emt 1:31:00]} c6 {[%emt 0:02:34]} 2. d4 {[%emt 0:00:00]} d5 {[%emt 0:00:07]} 3. e5 {[%emt 0:00:00]} Bf5 {[%emt 0:00:09]} 4. c4 {[%emt 0:00:00]} e6 {[%emt 0:00:56]} 5. Nc3 {[%emt 0:00:00]} Ne7 {[%emt 0:04:46]} 6. h3 {[%emt 0:00:00]} Nd7 {[%emt 0:07:54]} 7. Nf3 {[%emt 0:03:00]} dxc4 {[%emt 0:01:44]} 8. Bxc4 {[%emt 0:00:00]} Nb6 {[%emt 0:00:50]} 9. Bb3 {[%emt 0:00:00]} Ned5 {[%emt 0:00:44]} 10. O-O {[%emt 0:00:00]} Be7 {[%emt 0:00:55]} 11. Qe2 {[%emt 0:00:00]} O-O {[%emt 0:02:41]} 12. Ne4 {[%emt 0:00:00]} Rc8 {[%emt 0:05:23]} 13. a4 {[%emt 0:00:00]} Nd7 {[%emt 0:01:49]} 14. a5 {[%emt 0:00:00]} c5 {[%emt 0:10:55]} 15. Rd1 {[%emt 0:00:00]} cxd4 {[%emt 0:06:58]} 16. Nxd4 {[%emt 0:00:00]} Bxe4 {[%emt 0:00:35]} 17. Qxe4 {[%emt 0:00:00]} Nc5 {[%emt 0:00:08]} 18. Qg4 {[%emt 0:00:00]} Nxb3 {[%emt 0:00:07]} 19. Bh6 {[%emt 0:00:00]} g6 {[%emt 0:00:18]} 20. Nxb3 {[%emt 0:00:00]} Re8 {[%emt 0:00:52]} 21. Nd2 {[%emt 0:00:00]} Qc7 {[%emt 0:03:13]} 22. Nf3 {[%emt 0:00:00]} Qc4 {[%emt 0:05:43]} 23. a6 {[%emt 0:00:00]} bxa6 {[%emt 0:08:38]} 24. Qxc4 {[%emt 0:00:00]} Rxc4 {[%emt 0:00:05]} 25. Rxa6 {[%emt 0:00:00]} Bc5 {[%emt 0:02:42]} 26. b3 {[%emt 0:00:00]} Rc2 {[%emt 0:06:05]} 27. Rd2 {[%emt 0:00:00]} Rxd2 {[%emt 0:09:57]} 28. Nxd2 {[%emt 0:00:00]} Rb8 {[%emt 0:05:35]} 29. Rc6 {[%emt 0:02:05]} Bf8 {[%emt 0:01:42]} 30. Bxf8 {[%emt 0:00:32]} Kxf8 {[%emt 0:00:05]} 31. Ra6 {[%emt 0:00:22]} Rb7 {[%emt 0:03:29]} 32. Ne4 {[%emt 0:01:50]} Nb4 {[%emt 0:04:22]} 33. Rd6 {[%emt 0:00:32]} Ke7 {[%emt 0:00:35]} 34. Nf6 {[%emt 0:00:45]} h5 {[%emt 0:00:15]} 35. Ng8+ {[%emt 0:02:55]} Ke8 {[%emt 0:00:05]} 36. Nf6+ {[%emt 0:00:04]} Ke7 {[%emt 0:00:04]} 37. f4 {[%emt 0:03:34]} h4 {[%emt 0:03:06]} 38. Ng8+ {[%emt 0:00:54]} Ke8 {[%emt 0:00:05]} 39. Nf6+ {[%emt 0:00:04]} Ke7 {[%emt 0:00:04]} 40. Kf2 {[%emt 0:01:13]} Nd5 {[%emt 0:01:26]} 41. Nxd5+ {[%emt 0:03:55]} exd5 {[%emt 0:00:14]} 42. Rxd5 {[%emt 0:00:27]} Rxb3 {[%emt 0:00:06]} 1/2-1/2

[Event "21st Maccabiah GM 2022"]
[Site "?"]
[Date "2022.07.15"]
[Round "3.4"]
[White "Smirin, Ilia"]
[Black "Gruenfeld, Yehuda"]
[Result "0-1"]
[ECO "B93"]
[WhiteElo "2601"]
[BlackElo "2426"]
[Annotator "ChessBase"]
[PlyCount "87"]
[EventDate "2022.07.13"]
[EventType "tourn"]
[EventCountry "ISR"]
[SourceTitle "playchess.com"]
[Source "ChessBase"]
[SourceQuality "1"]
[TimeControl "40/5400+30:1800+30"]

1. e4 {[%emt 0:09:39]} c5 {[%emt 0:00:04]} 2. Nc3 {[%emt 0:00:12]} d6 {[%emt 0:01:07]} 3. f4 {[%emt 0:00:29]} Nc6 {[%emt 0:00:39]} 4. Nf3 {[%emt 0:00:47]} a6 {[%emt 0:01:10]} 5. d4 {[%emt 0:02:09]} cxd4 {[%emt 0:00:09]} 6. Nxd4 {[%emt 0:00:07]} Nf6 {[%emt 0:00:36]} 7. Nxc6 {[%emt 0:06:35]} bxc6 {[%emt 0:00:14]} 8. e5 {[%emt 0:00:04]} Nd7 {[%emt 0:05:11]} 9. Bc4 {[%emt 0:02:58]} Nb6 {[%emt 0:05:58]} 10. Bd3 {[%emt 0:01:53]} g6 {[%emt 0:07:18]} 11. Qf3 {[%emt 0:08:27]} dxe5 {[%emt 0:09:28]} 12. fxe5 {[%emt 0:03:12]} Nd5 {[%emt 0:00:14]} 13. O-O {[%emt 0:02:30]} Be6 {[%emt 0:00:10]} 14. Ne4 {[%emt 0:02:18]} Bg7 {[%emt 0:00:28]} 15. Ng5 {[%emt 0:01:00]} O-O {[%emt 0:00:30]} 16. Qg3 {[%emt 0:04:19]} Qd7 {[%emt 0:06:22]} 17. Bd2 {[%emt 0:02:25]} h6 {[%emt 0:14:45]} 18. Nxe6 {[%emt 0:06:56]} Qxe6 {[%emt 0:00:09]} 19. Rae1 {[%emt 0:00:06]} Nb6 {[%emt 0:04:40]} 20. b3 {[%emt 0:02:23]} c5 {[%emt 0:00:07]} 21. c4 {[%emt 0:06:22]} a5 {[%emt 0:02:17]} 22. a4 {[%emt 0:00:36]} Ra6 {[%emt 0:02:18]} 23. Bxh6 {[%emt 0:08:01]} Bxh6 {[%emt 0:01:12]} 24. Bf5 {[%emt 0:00:08]} Qc6 {[%emt 0:00:05]} 25. e6 {[%emt 0:00:03]} Qd6 {[%emt 0:02:24]} 26. Re5 {[%emt 0:06:26]} Kh7 {[%emt 0:09:30]} 27. Bc2 {[%emt 0:00:57]} f5 {[%emt 0:03:42]} 28. Rd1 {[%emt 0:01:17]} Qc7 {[%emt 0:02:57]} 29. h4 {[%emt 0:00:13]} Raa8 {[%emt 0:01:11]} 30. h5 {[%emt 0:02:49]} Rf6 {[%emt 0:00:06]} 31. Rde1 {[%emt 0:03:58]} Rd8 {[%emt 0:01:22]} 32. Qf3 {[%emt 0:02:25]} Rd4 {[%emt 0:02:38]} 33. hxg6+ {[%emt 0:02:02]} Kg7 {[%emt 0:00:06]} 34. Bxf5 {[%emt 0:00:39]} Qd6 {[%emt 0:01:36]} 35. g4 {[%emt 0:02:00]} Rd2 {[%emt 0:01:35]} 36. Qh3 {[%emt 0:01:00]} Qd4+ {[%emt 0:00:27]} 37. Kh1 {[%emt 0:00:06]} Rf8 {[%emt 0:04:48]} 38. Qh4 {[%emt 0:00:41]} Nc8 {[%emt 0:01:04]} 39. R5e4 {[%emt 0:01:43]} Qd6 {[%emt 0:01:01]} 40. g5 {[%emt 0:05:16]} Rh8 {[%emt 0:00:20]} 41. Rg1 {[%emt 0:31:25]} Bxg5 {[%emt 0:31:52]} 42. Qxh8+ Kxh8 {[%emt 0:00:06]} 43. Rh4+ {[%emt 0:00:27]} Kg8 {[%emt 0:00:40]} 44. g7 {[%emt 0:00:13]} 0-1

[Event "21st Maccabiah GM 2022"]
[Site "?"]
[Date "2022.07.15"]
[Round "3.5"]
[White "Kobo, Ori"]
[Black "Alekseev, Evgeny"]
[Result "1/2-1/2"]
[ECO "D36"]
[WhiteElo "2534"]
[BlackElo "2601"]
[Annotator "ChessBase"]
[PlyCount "29"]
[EventDate "2022.07.13"]
[EventType "tourn"]
[EventCountry "ISR"]
[SourceTitle "playchess.com"]
[Source "ChessBase"]
[SourceQuality "1"]
[TimeControl "40/5400+30:1800+30"]

1. d4 Nf6 2. c4 e6 3. Nc3 d5 4. cxd5 exd5 5. Bg5 c6 6. Qc2 Be7 7. e3 Nbd7 8. Bd3 Nh5 9. Bxe7 Qxe7 10. O-O-O Nb6 11. h3 g6 12. Nf3 Be6 13. Kb1 O-O-O 14. Na4 Ng7 15. Nc5 1/2-1/2

[Event "21st Maccabiah GM 2022"]
[Site "?"]
[Date "2022.07.17"]
[Round "4.1"]
[White "Dvoirys, Semen I."]
[Black "Alekseev, Evgeny"]
[Result "1/2-1/2"]
[ECO "B48"]
[WhiteElo "2439"]
[BlackElo "2601"]
[Annotator "ChessBase"]
[PlyCount "137"]
[EventDate "2022.07.13"]
[EventType "tourn"]
[EventCountry "ISR"]
[SourceTitle "playchess.com"]
[Source "ChessBase"]
[SourceQuality "1"]
[TimeControl "40/5400+30:1800+30"]

1. e4 {[%emt 0:00:02]} c5 {[%emt 0:00:03]} 2. Nf3 {[%emt 0:00:05]} e6 {[%emt 0:00:04]} 3. d4 {[%emt 0:00:06]} cxd4 {[%emt 0:00:06]} 4. Nxd4 {[%emt 0:00:05]} Nc6 {[%emt 0:00:03]} 5. Nc3 {[%emt 0:00:09]} a6 {[%emt 0:00:08]} 6. Be3 {[%emt 0:01:44]} Nf6 {[%emt 0:02:55]} 7. Bd3 {[%emt 0:01:22]} Qc7 {[%emt 0:01:40]} 8. O-O {[%emt 0:00:25]} Ne5 {[%emt 0:04:37]} 9. h3 {[%emt 0:01:32]} Bc5 {[%emt 0:03:11]} 10. Qe2 {[%emt 0:17:08]} d6 {[%emt 0:02:51]} 11. f4 {[%emt 0:00:17]} Ng6 {[%emt 0:04:01]} 12. Qf2 {[%emt 0:12:33]} O-O {[%emt 0:39:14]} 13. Rae1 {[%emt 0:07:57]} b6 {[%emt 0:04:00]} 14. Kh1 {[%emt 0:07:36]} e5 {[%emt 0:01:54]} 15. fxe5 {[%emt 0:00:15]} dxe5 {[%emt 0:00:10]} 16. Nf5 {[%emt 0:00:06]} Bxe3 {[%emt 0:01:39]} 17. Qxe3 {[%emt 0:02:16]} Nf4 {[%emt 0:03:39]} 18. g3 {[%emt 0:01:45]} Bxf5 19. exf5 {[%emt 0:05:15]} Nxd3 20. cxd3 {[%emt 0:00:20]} Rad8 {[%emt 0:05:44]} 21. Qxe5 {[%emt 0:05:50]} Qc6+ {[%emt 0:09:24]} 22. Kh2 {[%emt 0:00:56]} Rxd3 {[%emt 0:01:22]} 23. Ne4 {[%emt 0:03:52]} Nxe4 {[%emt 0:00:17]} 24. Rxe4 {[%emt 0:00:24]} Rd2+ {[%emt 0:02:31]} 25. Re2 {[%emt 0:02:46]} Qf6 {[%emt 0:00:42]} 26. Kg1 {[%emt 0:02:55]} Qxe5 {[%emt 0:01:02]} 27. Rxe5 {[%emt 0:00:04]} Rxb2 {[%emt 0:00:04]} 28. Rf2 {[%emt 0:07:09]} Rxf2 29. Kxf2 {[%emt 0:00:01]} Rd8 {[%emt 0:03:25]} 30. Re7 {[%emt 0:03:45]} h6 {[%emt 0:00:05]} 31. Rb7 {[%emt 0:04:09]} b5 {[%emt 0:00:44]} 32. Ke3 {[%emt 0:00:32]} Rc8 {[%emt 0:01:57]} 33. a4 {[%emt 0:03:55]} Rc3+ {[%emt 0:00:52]} 34. Kf2 {[%emt 0:00:19]} Rc5 {[%emt 0:00:27]} 35. Rb6 {[%emt 0:03:43]} Rc2+ {[%emt 0:04:22]} 36. Kf3 {[%emt 0:00:38]} Rc3+ {[%emt 0:00:10]} 37. Kf2 {[%emt 0:00:10]} bxa4 {[%emt 0:02:09]} 38. Rxa6 {[%emt 0:00:04]} a3 {[%emt 0:00:53]} 39. h4 {[%emt 0:03:04]} Kf8 {[%emt 0:01:41]} 40. f6 {[%emt 0:00:34]} gxf6 {[%emt 0:01:18]} 41. Rxf6 {[%emt 0:30:05]} Kg7 {[%emt 0:07:03]} 42. Ra6 {[%emt 0:00:00]} h5 {[%emt 0:00:24]} 43. Ra5 {[%emt 0:00:00]} Kg6 {[%emt 0:00:08]} 44. Rg5+ {[%emt 0:00:00]} Kh6 {[%emt 0:00:01]} 45. Rf5 {[%emt 0:00:00]} Rc6 {[%emt 0:00:20]} 46. Ra5 {[%emt 0:00:00]} Rc3 {[%emt 0:02:28]} 47. Rf5 {[%emt 0:00:00]} a2 {[%emt 0:00:22]} 48. Rf6+ {[%emt 0:00:00]} Kg7 {[%emt 0:00:03]} 49. Ra6 {[%emt 0:00:00]} Rc2+ {[%emt 0:00:03]} 50. Kf3 {[%emt 0:00:00]} f6 {[%emt 0:00:17]} 51. Kf4 {[%emt 0:00:00]} Kf7 {[%emt 0:03:52]} 52. Kf5 {[%emt 0:00:00]} Rf2+ {[%emt 0:00:19]} 53. Ke4 {[%emt 0:00:00]} Ke7 {[%emt 0:01:32]} 54. Ke3 {[%emt 0:00:00]} Rc2 {[%emt 0:01:05]} 55. Kf4 {[%emt 0:00:00]} Kd7 {[%emt 0:00:32]} 56. Kf5 {[%emt 0:00:00]} Kc7 {[%emt 0:02:28]} 57. Kg6 {[%emt 0:00:00]} Kb7 {[%emt 0:01:14]} 58. Ra3 {[%emt 0:00:00]} Kb6 {[%emt 0:00:30]} 59. Kxh5 {[%emt 0:00:31]} Rc5+ {[%emt 0:00:07]} 60. Kg6 {[%emt 0:00:02]} Ra5 {[%emt 0:00:06]} 61. Rxa2 {[%emt 0:00:07]} Rxa2 {[%emt 0:00:05]} 62. h5 {[%emt 0:00:12]} Kc6 {[%emt 0:05:32]} 63. h6 {[%emt 0:03:07]} Rh2 {[%emt 0:00:19]} 64. h7 {[%emt 0:00:09]} Kd5 {[%emt 0:00:57]} 65. Kg7 {[%emt 0:00:09]} Ke4 {[%emt 0:00:28]} 66. h8=Q {[%emt 0:00:08]} Rxh8 {[%emt 0:00:04]} 67. Kxh8 {[%emt 0:00:05]} Kf3 {[%emt 0:00:07]} 68. Kg7 {[%emt 0:00:04]} Kxg3 {[%emt 0:00:05]} 69. Kxf6 {[%emt 0:14:33]} 1/2-1/2

[Event "21st Maccabiah GM 2022"]
[Site "?"]
[Date "2022.07.17"]
[Round "4.2"]
[White "Gruenfeld, Yehuda"]
[Black "Kobo, Ori"]
[Result "1/2-1/2"]
[ECO "C90"]
[WhiteElo "2426"]
[BlackElo "2534"]
[Annotator "ChessBase"]
[PlyCount "162"]
[EventDate "2022.07.13"]
[EventType "tourn"]
[EventCountry "ISR"]
[SourceTitle "playchess.com"]
[Source "ChessBase"]
[SourceQuality "1"]
[TimeControl "40/5400+30:1800+30"]

1. e4 {[%emt 0:00:04]} e5 {[%emt 0:00:35]} 2. Nf3 {[%emt 0:00:09]} Nc6 {[%emt 0:00:07]} 3. Bb5 {[%emt 0:00:06]} a6 {[%emt 0:00:17]} 4. Ba4 {[%emt 0:00:05]} Nf6 {[%emt 0:00:13]} 5. O-O {[%emt 0:00:05]} Be7 {[%emt 0:00:29]} 6. d3 {[%emt 0:01:40]} d6 {[%emt 0:00:41]} 7. c3 {[%emt 0:03:02]} O-O {[%emt 0:00:19]} 8. Nbd2 {[%emt 0:01:01]} Re8 {[%emt 0:00:43]} 9. Re1 {[%emt 0:00:28]} Bf8 {[%emt 0:00:20]} 10. Nf1 {[%emt 0:00:16]} h6 {[%emt 0:00:34]} 11. Ng3 {[%emt 0:02:42]} b5 {[%emt 0:00:19]} 12. Bb3 {[%emt 0:07:18]} a5 {[%emt 0:03:05]} 13. a4 {[%emt 0:05:18]} b4 {[%emt 0:00:19]} 14. Bc4 {[%emt 0:00:47]} Rb8 {[%emt 0:07:31]} 15. Bb5 {[%emt 0:03:02]} Bd7 {[%emt 0:00:32]} 16. Bd2 {[%emt 0:13:48]} Na7 {[%emt 0:18:15]} 17. Bxd7 {[%emt 0:03:22]} Qxd7 {[%emt 0:00:52]} 18. d4 {[%emt 0:03:47]} c5 {[%emt 0:09:31]} 19. d5 {[%emt 0:11:07]} Ra8 {[%emt 0:08:14]} 20. h3 {[%emt 0:06:56]} Nc8 {[%emt 0:09:30]} 21. Be3 {[%emt 0:02:04]} Nb6 {[%emt 0:02:32]} 22. Nd2 {[%emt 0:00:18]} Reb8 {[%emt 0:03:40]} 23. cxb4 {[%emt 0:06:04]} axb4 {[%emt 0:00:48]} 24. a5 {[%emt 0:00:10]} Nc8 {[%emt 0:00:28]} 25. Nc4 {[%emt 0:00:50]} Ra6 {[%emt 0:11:30]} 26. f4 {[%emt 0:07:23]} exf4 27. Bxf4 {[%emt 0:00:10]} Rba8 {[%emt 0:05:36]} 28. Qf3 {[%emt 0:04:32]} Qd8 {[%emt 0:10:52]} 29. Nf5 {[%emt 0:02:41]} Kh7 {[%emt 0:00:59]} 30. Rf1 {[%emt 0:04:34]} R8a7 {[%emt 0:02:43]} 31. Rf2 {[%emt 0:04:57]} Ng8 {[%emt 0:01:11]} 32. Bg3 {[%emt 0:01:01]} g6 {[%emt 0:01:05]} 33. Bh4 {[%emt 0:00:32]} Qe8 {[%emt 0:00:33]} 34. Nfe3 {[%emt 0:01:13]} Bg7 {[%emt 0:00:53]} 35. Kh1 {[%emt 0:02:05]} Rd7 {[%emt 0:00:32]} 36. Raf1 {[%emt 0:01:09]} Na7 {[%emt 0:01:24]} 37. Ng4 {[%emt 0:01:35]} Nb5 {[%emt 0:00:37]} 38. Qd3 {[%emt 0:00:40]} Raa7 {[%emt 0:01:07]} 39. Nf6+ {[%emt 0:02:08]} Nxf6 {[%emt 0:00:01]} 40. Bxf6 {[%emt 0:00:11]} Bxf6 {[%emt 0:00:57]} 41. Rxf6 {[%emt 0:30:10]} Re7 {[%emt 0:06:19]} 42. e5 {[%emt 0:00:00]} dxe5 {[%emt 0:01:12]} 43. d6 {[%emt 0:00:00]} Re6 {[%emt 0:12:22]} 44. d7 {[%emt 0:00:00]} Rxd7 {[%emt 0:00:16]} 45. Qxd7 {[%emt 0:00:00]} Qxd7 {[%emt 0:00:07]} 46. Rxf7+ {[%emt 0:00:00]} Qxf7 {[%emt 0:00:06]} 47. Rxf7+ {[%emt 0:00:00]} Kg8 {[%emt 0:01:14]} 48. Rb7 {[%emt 0:00:00]} e4 {[%emt 0:10:26]} 49. Rxb5 {[%emt 0:00:00]} e3 {[%emt 0:00:02]} 50. Nxe3 {[%emt 0:00:00]} Rxe3 {[%emt 0:00:01]} 51. Rxc5 {[%emt 0:00:00]} Re1+ {[%emt 0:00:13]} 52. Kh2 {[%emt 0:00:00]} Ra1 {[%emt 0:00:51]} 53. Rc6 {[%emt 0:00:00]} Kg7 {[%emt 0:00:56]} 54. a6 {[%emt 0:00:00]} h5 {[%emt 0:01:47]} 55. h4 {[%emt 0:00:00]} Kh6 {[%emt 0:00:36]} 56. Rb6 {[%emt 0:00:00]} Ra2 {[%emt 0:00:17]} 57. b3 {[%emt 0:00:00]} Ra3 {[%emt 0:00:22]} 58. Rxb4 {[%emt 0:00:00]} Rxa6 {[%emt 0:00:01]} 59. Rc4 {[%emt 0:00:00]} Ra3 {[%emt 0:00:49]} 60. Rc3 {[%emt 0:00:00]} Ra2 {[%emt 0:01:33]} 61. Rg3 {[%emt 0:00:00]} Rb2 {[%emt 0:00:48]} 62. Kg1 {[%emt 0:00:00]} g5 {[%emt 0:00:30]} 63. hxg5+ {[%emt 0:00:00]} Kg6 {[%emt 0:00:01]} 64. Kh2 {[%emt 0:00:00]} h4 {[%emt 0:00:31]} 65. Rc3 {[%emt 0:00:00]} Kxg5 {[%emt 0:00:04]} 66. Kh3 {[%emt 0:00:00]} Rb1 {[%emt 0:00:03]} 67. Kh2 {[%emt 0:00:00]} Rb2 {[%emt 0:01:10]} 68. Rc5+ {[%emt 0:00:00]} Kg4 {[%emt 0:00:12]} 69. Rc4+ {[%emt 0:00:00]} Kg5 {[%emt 0:00:18]} 70. Rb4 {[%emt 0:00:56]} Rb1 {[%emt 0:00:13]} 71. Rb8 {[%emt 0:02:13]} Kg4 {[%emt 0:00:56]} 72. Rb7 {[%emt 0:04:53]} Rb2 {[%emt 0:01:40]} 73. Rb4+ {[%emt 0:00:29]} Kg5 {[%emt 0:00:11]} 74. Kg1 {[%emt 0:00:16]} Kh5 {[%emt 0:00:31]} 75. Kf1 {[%emt 0:01:41]} Kg5 {[%emt 0:00:08]} 76. Kg1 {[%emt 0:00:35]} Kh5 {[%emt 0:00:05]} 77. Kh2 {[%emt 0:00:15]} Kg5 {[%emt 0:00:33]} 78. Kh3 {[%emt 0:00:59]} Rb1 {[%emt 0:00:08]} 79. Rg4+ {[%emt 0:00:10]} Kf5 {[%emt 0:00:10]} 80. Kxh4 {[%emt 0:00:26]} Rxb3 {[%emt 0:00:26]} 81. Rg8 {[%emt 0:00:11]} Rb1 {[%emt 0:01:26]} 1/2-1/2